[Event "Live Chess"]
[Site "Chess.com"]
[Date "2023.05.20"]
[Round "-"]
[White "BillythekidFellowes"]
[Black "BJAW87"]
[Result "1-0"]
[WhiteElo "1998"]
[BlackElo "1438"]
[TimeControl "300"]
[EndTime "10:54:12 PDT"]
[Termination "BillythekidFellowes won by resignation"]

1. e4 {[%clk 0:04:53.2]} 1... c6 {[%clk 0:04:59.2]} 2. Nf3 {[%clk 0:04:50.9]}
2... d5 {[%clk 0:04:58.5]} 3. exd5 {[%clk 0:04:50]} 3... cxd5 {[%clk 0:04:58.4]}
4. d4 {[%clk 0:04:49.3]} 4... Nc6 {[%clk 0:04:57]} 5. c4 {[%clk 0:04:46.7]} 5...
Nf6 {[%clk 0:04:52.2]} 6. Nc3 {[%clk 0:04:45.5]} 6... Bg4 {[%clk 0:04:47.9]} 7.
Be3 {[%clk 0:04:42.3]} 7... dxc4 {[%clk 0:04:39.5]} 8. Bxc4 {[%clk 0:04:42.2]}
8... e6 {[%clk 0:04:38.8]} 9. O-O {[%clk 0:04:35.8]} 9... Bd6 {[%clk 0:04:30.5]}
10. h3 {[%clk 0:04:25.9]} 10... Bh5 {[%clk 0:04:24.3]} 11. d5 {[%clk 0:04:13.1]}
11... exd5 {[%clk 0:04:20.3]} 12. Nxd5 {[%clk 0:04:13]} 12... O-O {[%clk
0:04:11.3]} 13. Bg5 {[%clk 0:04:07]} 13... Ne5 {[%clk 0:03:38.6]} 14. Be2 {[%clk
0:03:57]} 14... Nxf3+ {[%clk 0:03:25.8]} 15. Bxf3 {[%clk 0:03:56.9]} 15... Bxf3
{[%clk 0:03:18.3]} 16. Qxf3 {[%clk 0:03:50]} 16... Be7 {[%clk 0:03:17]} 17.
Nxe7+ {[%clk 0:03:48.3]} 17... Qxe7 {[%clk 0:03:14.7]} 18. Rfe1 {[%clk
0:03:47.4]} 18... Qd6 {[%clk 0:03:08.9]} 19. Rad1 {[%clk 0:03:44.3]} 19... Qb6
{[%clk 0:03:00.6]} 20. Qf4 {[%clk 0:03:30.7]} 20... Qxb2 {[%clk 0:02:50.6]} 21.
Rd4 {[%clk 0:03:14.4]} 21... Nh5 {[%clk 0:02:40.8]} 22. Qh4 {[%clk 0:03:09.5]}
22... f6 {[%clk 0:02:20.1]} 23. Bc1 {[%clk 0:03:03.4]} 23... Qc3 {[%clk
0:02:15.9]} 24. Red1 {[%clk 0:03:02.8]} 24... g6 {[%clk 0:02:08.3]} 25. Rd7
{[%clk 0:02:46.9]} 25... Rf7 {[%clk 0:02:05.2]} 26. Rxf7 {[%clk 0:02:30.9]}
26... Kxf7 {[%clk 0:02:05.1]} 27. g4 {[%clk 0:02:26.5]} 27... Qc4 {[%clk
0:01:48.8]} 28. Be3 {[%clk 0:02:08]} 28... Nf4 {[%clk 0:01:40.8]} 29. Qxh7+
{[%clk 0:02:05.8]} 29... Ke6 {[%clk 0:01:40.4]} 30. Qd7+ {[%clk 0:02:02.4]}
30... Ke5 {[%clk 0:01:37.9]} 31. Qd6+ {[%clk 0:02:02]} 31... Ke4 {[%clk
0:01:34]} 32. Rd4+ {[%clk 0:02:01.9]} 32... Qxd4 {[%clk 0:01:32.9]} 33. Qxd4+
{[%clk 0:01:55.9]} 33... Kf3 {[%clk 0:01:31.6]} 34. Qxf4+ {[%clk 0:01:55.5]}
34... Ke2 {[%clk 0:01:30.4]} 1-0

[Event "Live Chess"]
[Site "Chess.com"]
[Date "2023.05.20"]
[Round "-"]
[White "misha464"]
[Black "yarek"]
[Result "0-1"]
[WhiteElo "743"]
[BlackElo "1895"]
[TimeControl "300"]
[EndTime "10:54:18 PDT"]
[Termination "yarek won by resignation"]

1. e4 {[%clk 0:04:58.2]} 1... g6 {[%clk 0:04:58.3]} 2. g3 {[%clk 0:04:56.7]}
2... Bg7 {[%clk 0:04:56.4]} 3. Bg2 {[%clk 0:04:56.6]} 3... c6 {[%clk 0:04:54.4]}
4. Nc3 {[%clk 0:04:55.4]} 4... d6 {[%clk 0:04:51.9]} 5. d3 {[%clk 0:04:54.8]}
5... Nf6 {[%clk 0:04:50.5]} 6. Bg5 {[%clk 0:04:53.5]} 6... O-O {[%clk
0:04:48.3]} 7. Bxf6 {[%clk 0:04:52.8]} 7... Bxf6 {[%clk 0:04:46.4]} 8. Bh3
{[%clk 0:04:50.8]} 8... Bxh3 {[%clk 0:04:43.2]} 9. Nxh3 {[%clk 0:04:50.7]} 9...
Qd7 {[%clk 0:04:40.8]} 10. Nf4 {[%clk 0:04:50]} 10... Bg7 {[%clk 0:04:38.2]} 11.
h4 {[%clk 0:04:45.5]} 11... h5 {[%clk 0:04:34.8]} 12. d4 {[%clk 0:04:41.7]}
12... Na6 {[%clk 0:04:24.9]} 13. d5 {[%clk 0:04:40.9]} 13... c5 {[%clk
0:04:12.2]} 14. Qd2 {[%clk 0:04:34.2]} 14... b5 {[%clk 0:04:05.4]} 15. a3 {[%clk
0:04:27.5]} 15... b4 {[%clk 0:04:00.8]} 16. axb4 {[%clk 0:04:26.5]} 16... Nxb4
{[%clk 0:03:59.4]} 17. Nd3 {[%clk 0:04:16.8]} 17... a5 {[%clk 0:03:48.8]} 18.
Nxb4 {[%clk 0:04:15.1]} 18... axb4 {[%clk 0:03:46.4]} 19. Ne2 {[%clk 0:04:15]}
19... Rxa1+ {[%clk 0:03:43.2]} 0-1

[Event "Live Chess"]
[Site "Chess.com"]
[Date "2023.05.20"]
[Round "-"]
[White "EdenHazard8"]
[Black "LodeshChess"]
[Result "1-0"]
[WhiteElo "2112"]
[BlackElo "946"]
[TimeControl "300"]
[EndTime "10:54:19 PDT"]
[Termination "EdenHazard8 won by resignation"]

1. e4 {[%clk 0:04:58.9]} 1... c6 {[%clk 0:04:58.8]} 2. d4 {[%clk 0:04:57.4]}
2... d5 {[%clk 0:04:58.5]} 3. e5 {[%clk 0:04:57]} 3... Bf5 {[%clk 0:04:56.7]} 4.
h4 {[%clk 0:04:56.4]} 4... h6 {[%clk 0:04:55.5]} 5. Bd3 {[%clk 0:04:53.9]} 5...
Bxd3 {[%clk 0:04:54.4]} 6. Qxd3 {[%clk 0:04:53.8]} 6... e6 {[%clk 0:04:53.9]} 7.
Nf3 {[%clk 0:04:52.4]} 7... c5 {[%clk 0:04:53.3]} 8. c3 {[%clk 0:04:51.8]} 8...
Nc6 {[%clk 0:04:51.9]} 9. Be3 {[%clk 0:04:49.9]} 9... Qb6 {[%clk 0:04:50.7]} 10.
Nbd2 {[%clk 0:04:49.1]} 10... cxd4 {[%clk 0:04:44.6]} 11. cxd4 {[%clk
0:04:46.8]} 11... Nge7 {[%clk 0:04:44]} 12. O-O {[%clk 0:04:45]} 12... Nf5
{[%clk 0:04:43]} 13. Nb3 {[%clk 0:04:43.2]} 13... Nxe3 {[%clk 0:04:30.2]} 14.
fxe3 {[%clk 0:04:43.1]} 14... Be7 {[%clk 0:04:25.4]} 15. Rac1 {[%clk 0:04:39]}
15... O-O {[%clk 0:04:23.4]} 16. Nc5 {[%clk 0:04:37.7]} 16... a6 {[%clk
0:04:12.7]} 17. Nd7 {[%clk 0:04:35.4]} 17... Qd8 {[%clk 0:04:09.2]} 18. Nxf8
{[%clk 0:04:33.8]} 18... Bxf8 {[%clk 0:04:05.8]} 19. Qb3 {[%clk 0:04:29.3]}
19... Qd7 {[%clk 0:04:01.8]} 20. Rc2 {[%clk 0:04:23.6]} 20... b5 {[%clk
0:03:49.1]} 21. Rfc1 {[%clk 0:04:21.6]} 21... Na5 {[%clk 0:03:48.6]} 22. Qd3
{[%clk 0:04:20.2]} 22... Nc4 {[%clk 0:03:46.8]} 23. b3 {[%clk 0:04:18.6]} 23...
Na5 {[%clk 0:03:33.6]} 24. Rc7 {[%clk 0:04:13.9]} 24... Qd8 {[%clk 0:03:27.1]}
25. Qc3 {[%clk 0:04:10.6]} 25... Be7 {[%clk 0:02:50.8]} 26. Qxa5 {[%clk
0:04:06.5]} 26... Bxh4 {[%clk 0:02:46.2]} 27. Nxh4 {[%clk 0:03:59.4]} 27... Qxh4
{[%clk 0:02:45.2]} 28. Rc8+ {[%clk 0:03:58.5]} 28... Rxc8 {[%clk 0:02:44.7]} 29.
Rxc8+ {[%clk 0:03:58.1]} 29... Kh7 {[%clk 0:02:44.4]} 30. Qd2 {[%clk 0:03:55.4]}
30... Qe4 {[%clk 0:02:38.7]} 31. Qc2 {[%clk 0:03:54.6]} 31... Qxc2 {[%clk
0:02:26.4]} 32. Rxc2 {[%clk 0:03:54.5]} 32... Kg6 {[%clk 0:02:24.1]} 33. Rc6
{[%clk 0:03:51.5]} 1-0

[Event "Live Chess"]
[Site "Chess.com"]
[Date "2023.05.20"]
[Round "-"]
[White "LL220284LL"]
[Black "Ayush_prahlad_Gupta"]
[Result "0-1"]
[WhiteElo "2380"]
[BlackElo "1808"]
[TimeControl "300"]
[EndTime "10:54:23 PDT"]
[Termination "Ayush_prahlad_Gupta won by resignation"]

1. b3 {[%clk 0:04:55.8]} 1... e5 {[%clk 0:04:59.9]} 2. Bb2 {[%clk 0:04:54.5]}
2... Nf6 {[%clk 0:04:59.8]} 3. Bxe5 {[%clk 0:04:50.1]} 3... Nc6 {[%clk
0:04:59.7]} 4. Bb2 {[%clk 0:04:48.8]} 4... d6 {[%clk 0:04:59.6]} 5. Nf3 {[%clk
0:04:45.3]} 5... Be7 {[%clk 0:04:59.3]} 6. g3 {[%clk 0:04:43.7]} 6... O-O {[%clk
0:04:58.3]} 7. Bg2 {[%clk 0:04:42]} 7... Be6 {[%clk 0:04:58.2]} 8. O-O {[%clk
0:04:37.2]} 8... Qd7 {[%clk 0:04:56.1]} 9. Re1 {[%clk 0:04:36.1]} 9... Bh3
{[%clk 0:04:55.2]} 10. Bh1 {[%clk 0:04:34.4]} 10... Ne5 {[%clk 0:04:51.2]} 11.
Nxe5 {[%clk 0:04:32.5]} 11... dxe5 {[%clk 0:04:51.1]} 12. Bxe5 {[%clk
0:04:32.3]} 12... Ng4 {[%clk 0:04:46.7]} 13. Bb2 {[%clk 0:04:30.5]} 13... Qf5
{[%clk 0:04:36.9]} 14. Bf3 {[%clk 0:04:24.8]} 14... Qh5 {[%clk 0:04:33.8]} 15.
e4 {[%clk 0:04:17.8]} 15... Bg5 {[%clk 0:04:28]} 16. d3 {[%clk 0:04:12.7]} 16...
f5 {[%clk 0:04:26.9]} 17. Nd2 {[%clk 0:04:07.7]} 17... f4 {[%clk 0:04:25.9]} 18.
Bxg4 {[%clk 0:03:57.9]} 18... Bxg4 {[%clk 0:04:21.9]} 19. f3 {[%clk 0:03:57.1]}
19... fxg3 {[%clk 0:04:20.6]} 20. hxg3 {[%clk 0:03:53.7]} 20... Qh3 {[%clk
0:04:09.6]} 21. Be5 {[%clk 0:03:40.8]} 21... Bh5 {[%clk 0:03:30.1]} 22. g4
{[%clk 0:03:23.2]} 22... Bxg4 {[%clk 0:03:15.4]} 23. fxg4 {[%clk 0:03:20.2]}
23... Bh4 {[%clk 0:03:10.2]} 24. Qe2 {[%clk 0:03:09.1]} 24... Rf2 {[%clk
0:03:03.1]} 25. Qxf2 {[%clk 0:03:06.9]} 25... Bxf2+ {[%clk 0:03:01.7]} 26. Kxf2
{[%clk 0:03:06.8]} 26... Rf8+ {[%clk 0:02:59.2]} 27. Kg1 {[%clk 0:02:57.4]}
27... Qxg4+ {[%clk 0:02:55.9]} 28. Kh1 {[%clk 0:02:56.4]} 28... Qh5+ {[%clk
0:02:52.8]} 29. Bh2 {[%clk 0:02:54.8]} 29... Rf2 {[%clk 0:02:50.4]} 30. Nf1
{[%clk 0:02:54.3]} 30... Qf3+ {[%clk 0:02:48.9]} 0-1

[Event "Live Chess"]
[Site "Chess.com"]
[Date "2023.05.20"]
[Round "-"]
[White "Kr1xot4_XGOD"]
[Black "jameskwong"]
[Result "1-0"]
[WhiteElo "2207"]
[BlackElo "2156"]
[TimeControl "300"]
[EndTime "10:54:25 PDT"]
[Termination "Kr1xot4_XGOD won by resignation"]

1. e4 {[%clk 0:04:57.1]} 1... c5 {[%clk 0:04:58.2]} 2. Nf3 {[%clk 0:04:54.8]}
2... Nc6 {[%clk 0:04:54.2]} 3. d4 {[%clk 0:04:53.2]} 3... cxd4 {[%clk
0:04:53.8]} 4. Nxd4 {[%clk 0:04:49.8]} 4... Nf6 {[%clk 0:04:53.2]} 5. Nc3 {[%clk
0:04:44.1]} 5... d6 {[%clk 0:04:52.1]} 6. Bg5 {[%clk 0:04:40.6]} 6... e6 {[%clk
0:04:49.7]} 7. f4 {[%clk 0:04:31.9]} 7... a6 {[%clk 0:04:38.3]} 8. Nxc6 {[%clk
0:04:25.9]} 8... bxc6 {[%clk 0:04:36.5]} 9. e5 {[%clk 0:04:23.2]} 9... h6 {[%clk
0:04:22.5]} 10. Bxf6 {[%clk 0:04:18.6]} 10... gxf6 {[%clk 0:04:20.6]} 11. exd6
{[%clk 0:04:17.7]} 11... Qxd6 {[%clk 0:04:11.9]} 12. Qxd6 {[%clk 0:04:17]} 12...
Bxd6 {[%clk 0:04:11.2]} 13. f5 {[%clk 0:04:09.6]} 13... exf5 {[%clk 0:04:07.8]}
14. O-O-O {[%clk 0:04:02.9]} 14... Be5 {[%clk 0:04:05.6]} 15. g3 {[%clk
0:03:59.2]} 15... Bd7 {[%clk 0:03:43.4]} 16. Bg2 {[%clk 0:03:51.7]} 16... Ke7
{[%clk 0:03:39.6]} 17. Rhe1 {[%clk 0:03:46.3]} 17... Rab8 {[%clk 0:03:34.2]} 18.
Rd2 {[%clk 0:03:40.4]} 18... Rhd8 {[%clk 0:03:30.1]} 19. b3 {[%clk 0:03:36.7]}
19... Be8 {[%clk 0:03:24.4]} 20. Rxd8 {[%clk 0:03:33.2]} 20... Rxd8 {[%clk
0:03:24.3]} 21. Ne2 {[%clk 0:03:30.1]} 21... Kf8 {[%clk 0:03:15.3]} 22. Nf4
{[%clk 0:03:23.6]} 22... Bxf4+ {[%clk 0:03:13.9]} 23. gxf4 {[%clk 0:03:22.5]}
23... Rd4 {[%clk 0:03:10.9]} 24. Rf1 {[%clk 0:03:19.3]} 24... c5 {[%clk
0:03:07]} 25. c3 {[%clk 0:03:16.9]} 25... Rd3 {[%clk 0:03:02.9]} 26. Rd1 {[%clk
0:03:15.6]} 26... Rxd1+ {[%clk 0:02:53]} 27. Kxd1 {[%clk 0:03:14.7]} 27... Ke7
{[%clk 0:02:51.9]} 28. b4 {[%clk 0:03:11.2]} 28... cxb4 {[%clk 0:02:47.9]} 29.
cxb4 {[%clk 0:03:09.9]} 29... Kd6 {[%clk 0:02:46.3]} 30. Kc2 {[%clk 0:03:07.2]}
30... Bd7 {[%clk 0:02:29.2]} 31. Kc3 {[%clk 0:02:54.9]} 31... Kc7 {[%clk
0:02:27.4]} 32. Bd5 {[%clk 0:02:40.5]} 32... Be6 {[%clk 0:02:23.5]} 33. Kd4
{[%clk 0:02:34.4]} 33... Kb6 {[%clk 0:02:20.6]} 34. a4 {[%clk 0:02:30.1]} 34...
Kc7 {[%clk 0:02:07.1]} 35. Bc4 {[%clk 0:02:22.8]} 35... Kb6 {[%clk 0:01:57]} 36.
a5+ {[%clk 0:02:22.3]} 36... Kb7 {[%clk 0:01:54.3]} 37. b5 {[%clk 0:02:17.1]}
37... axb5 {[%clk 0:01:49.3]} 38. Bxb5 {[%clk 0:02:16.5]} 38... Kc7 {[%clk
0:01:32.3]} 39. Kc5 {[%clk 0:02:12.7]} 39... Kb7 {[%clk 0:01:28.4]} 40. Kd6
{[%clk 0:02:09.7]} 40... Kc8 {[%clk 0:01:14.4]} 41. Ke7 {[%clk 0:02:02.9]} 41...
Kc7 {[%clk 0:01:11.4]} 42. Kxf6 {[%clk 0:01:57.7]} 42... Kd6 {[%clk 0:01:09.2]}
43. h4 {[%clk 0:01:51.6]} 43... Kc5 {[%clk 0:01:01]} 44. Be8 {[%clk 0:01:47.3]}
44... Kd4 {[%clk 0:00:45.2]} 45. a6 {[%clk 0:01:40.5]} 45... Bc8 {[%clk
0:00:30.9]} 46. a7 {[%clk 0:01:36.2]} 46... Bb7 {[%clk 0:00:30.3]} 47. Kxf5
{[%clk 0:01:32.5]} 47... Kc5 {[%clk 0:00:24.2]} 48. Bxf7 {[%clk 0:01:29.1]}
48... Kb6 {[%clk 0:00:23.5]} 49. Kg6 {[%clk 0:01:25.6]} 49... Kxa7 {[%clk
0:00:22.8]} 50. h5 {[%clk 0:01:23.1]} 50... Kb6 {[%clk 0:00:18.9]} 51. Kxh6
{[%clk 0:01:20.9]} 51... Kc5 {[%clk 0:00:18]} 52. f5 {[%clk 0:01:18.4]} 52...
Kd6 {[%clk 0:00:17.2]} 53. f6 {[%clk 0:01:15.9]} 53... Ke5 {[%clk 0:00:15.2]}
54. Kg6 {[%clk 0:01:10.4]} 54... Be4+ {[%clk 0:00:10.7]} 55. Kg7 {[%clk
0:01:07.9]} 55... Kf5 {[%clk 0:00:09.6]} 56. Bg6+ {[%clk 0:01:04.1]} 1-0

[Event "Live Chess"]
[Site "Chess.com"]
[Date "2023.05.20"]
[Round "-"]
[White "LaupMiths"]
[Black "Pandreq"]
[Result "1-0"]
[WhiteElo "1827"]
[BlackElo "1268"]
[TimeControl "300"]
[EndTime "10:54:34 PDT"]
[Termination "LaupMiths won on time"]

1. Nf3 {[%clk 0:04:55.5]} 1... Nf6 {[%clk 0:04:58.7]} 2. c4 {[%clk 0:04:52.9]}
2... g6 {[%clk 0:04:58]} 3. b3 {[%clk 0:04:48.7]} 3... Bg7 {[%clk 0:04:57.5]} 4.
Bb2 {[%clk 0:04:46.7]} 4... O-O {[%clk 0:04:55.9]} 5. g3 {[%clk 0:04:42.3]} 5...
d6 {[%clk 0:04:54.3]} 6. d4 {[%clk 0:04:40.3]} 6... Nc6 {[%clk 0:04:52.7]} 7.
Bg2 {[%clk 0:04:37.8]} 7... Bd7 {[%clk 0:04:50]} 8. O-O {[%clk 0:04:35.9]} 8...
Rb8 {[%clk 0:04:40.9]} 9. a3 {[%clk 0:04:34.3]} 9... e5 {[%clk 0:04:35.9]} 10.
d5 {[%clk 0:04:32.6]} 10... Ne7 {[%clk 0:04:30.7]} 11. Nfd2 {[%clk 0:04:25.1]}
11... c6 {[%clk 0:04:26.7]} 12. e4 {[%clk 0:04:22.8]} 12... cxd5 {[%clk
0:04:24.1]} 13. cxd5 {[%clk 0:04:21]} 13... Bb5 {[%clk 0:04:15.3]} 14. Re1
{[%clk 0:04:17.1]} 14... Qb6 {[%clk 0:03:57.8]} 15. a4 {[%clk 0:04:12.3]} 15...
Bd3 {[%clk 0:03:52.3]} 16. h3 {[%clk 0:04:10.2]} 16... Rfc8 {[%clk 0:03:41.7]}
17. Na3 {[%clk 0:04:08.4]} 17... Nh5 {[%clk 0:03:21.2]} 18. Qf3 {[%clk
0:04:03.2]} 18... Bc2 {[%clk 0:03:11.4]} 19. Nac4 {[%clk 0:03:59.6]} 19... Qc7
{[%clk 0:02:55.8]} 20. Rac1 {[%clk 0:03:57]} 20... Bxe4 {[%clk 0:02:41.7]} 21.
Nxe4 {[%clk 0:03:50]} 21... Nxd5 {[%clk 0:02:30.2]} 22. Ncxd6 {[%clk 0:03:45.7]}
22... Qd7 {[%clk 0:02:22.7]} 23. Rxc8+ {[%clk 0:03:37.7]} 23... Rxc8 {[%clk
0:02:21.4]} 24. Ng5 {[%clk 0:03:23.9]} 24... Rc2 {[%clk 0:02:00.7]} 25. Ba3
{[%clk 0:03:16]} 25... Nhf6 {[%clk 0:01:38.5]} 26. Rxe5 {[%clk 0:03:08.3]} 26...
Ra2 {[%clk 0:01:27.4]} 27. Rxd5 {[%clk 0:02:55.1]} 27... Nxd5 {[%clk 0:01:25.2]}
28. Qxd5 {[%clk 0:02:53.3]} 28... Rxa3 {[%clk 0:01:22.5]} 29. Ngxf7 {[%clk
0:02:50.8]} 29... Kf8 {[%clk 0:01:13]} 30. Ng5 {[%clk 0:02:39.2]} 30... Ra1+
{[%clk 0:01:06.8]} 31. Kh2 {[%clk 0:02:31.2]} 31... Re1 {[%clk 0:00:42.7]} 32.
Nxh7+ {[%clk 0:02:24.6]} 32... Ke7 {[%clk 0:00:34.4]} 33. Ng5 {[%clk 0:02:00]}
33... Qxd6 {[%clk 0:00:14.9]} 34. Qf7+ {[%clk 0:01:56.9]} 34... Kd8 {[%clk
0:00:10.5]} 35. Qxg7 {[%clk 0:01:55.6]} 35... Qe7 {[%clk 0:00:02.1]} 36. Qg8+
{[%clk 0:01:50.1]} 36... Kd7 {[%clk 0:00:00.8]} 37. Qd5+ {[%clk 0:01:48.2]} 1-0

[Event "Live Chess"]
[Site "Chess.com"]
[Date "2023.05.20"]
[Round "-"]
[White "CeladonFish"]
[Black "bristolunichess"]
[Result "0-1"]
[WhiteElo "1042"]
[BlackElo "1814"]
[TimeControl "300"]
[EndTime "10:54:44 PDT"]
[Termination "bristolunichess won by checkmate"]

1. d4 {[%clk 0:04:59.4]} 1... Nf6 {[%clk 0:04:58.4]} 2. c4 {[%clk 0:04:58.8]}
2... g6 {[%clk 0:04:55.2]} 3. Nc3 {[%clk 0:04:58.2]} 3... Bg7 {[%clk 0:04:53.9]}
4. Bf4 {[%clk 0:04:57.4]} 4... O-O {[%clk 0:04:50.2]} 5. Nf3 {[%clk 0:04:56.9]}
5... d5 {[%clk 0:04:38.6]} 6. e3 {[%clk 0:04:53.3]} 6... c5 {[%clk 0:04:24.9]}
7. cxd5 {[%clk 0:04:51.6]} 7... cxd4 {[%clk 0:04:09.8]} 8. Nxd4 {[%clk
0:04:46.2]} 8... Nxd5 {[%clk 0:04:00.9]} 9. Nxd5 {[%clk 0:04:37.5]} 9... Qxd5
{[%clk 0:03:59.5]} 10. f3 {[%clk 0:04:23.1]} 10... e5 {[%clk 0:03:58.1]} 11. e4
{[%clk 0:04:20.3]} 11... Qxd4 {[%clk 0:03:54.7]} 12. Qxd4 {[%clk 0:04:18.9]}
12... exd4 {[%clk 0:03:54.6]} 13. Rd1 {[%clk 0:04:13.9]} 13... Be6 {[%clk
0:03:51]} 14. a3 {[%clk 0:04:10.2]} 14... Nc6 {[%clk 0:03:49.9]} 15. Bb5 {[%clk
0:04:07.1]} 15... Rac8 {[%clk 0:03:47.3]} 16. Kf2 {[%clk 0:04:03.9]} 16... a6
{[%clk 0:03:41.9]} 17. Bxc6 {[%clk 0:04:02.5]} 17... bxc6 {[%clk 0:03:39.7]} 18.
Bd6 {[%clk 0:04:01.2]} 18... Rfd8 {[%clk 0:03:34.1]} 19. e5 {[%clk 0:04:00.1]}
19... Rxd6 {[%clk 0:03:30.9]} 20. exd6 {[%clk 0:03:58.1]} 20... Rd8 {[%clk
0:03:26.9]} 21. Rd3 {[%clk 0:03:39.9]} 21... Rxd6 {[%clk 0:03:25.2]} 22. Rhd1
{[%clk 0:03:38.6]} 22... c5 {[%clk 0:03:18.6]} 23. a4 {[%clk 0:03:26.8]} 23...
c4 {[%clk 0:03:15.1]} 24. Ra3 {[%clk 0:03:11.7]} 24... d3 {[%clk 0:03:12.6]} 25.
Ke3 {[%clk 0:03:11]} 25... Bd4+ {[%clk 0:03:08.4]} 26. Ke4 {[%clk 0:03:09.5]}
26... f5+ {[%clk 0:02:51]} 27. Kf4 {[%clk 0:03:07.4]} 27... Bf2 {[%clk
0:02:46.7]} 28. g3 {[%clk 0:02:58.9]} 28... Kf7 {[%clk 0:02:33.4]} 29. Ke5
{[%clk 0:02:52.7]} 29... Ke7 {[%clk 0:02:29.2]} 30. Rd2 {[%clk 0:02:34.6]} 30...
g5 {[%clk 0:02:16.6]} 31. Rxf2 {[%clk 0:02:31.9]} 31... Rd5# {[%clk 0:02:15.7]}
0-1

[Event "Live Chess"]
[Site "Chess.com"]
[Date "2023.05.20"]
[Round "-"]
[White "raminguy"]
[Black "GMHarry-youtube"]
[Result "1-0"]
[WhiteElo "1985"]
[BlackElo "2140"]
[TimeControl "300"]
[EndTime "10:54:49 PDT"]
[Termination "raminguy won by resignation"]

1. d4 {[%clk 0:04:59.1]} 1... Nf6 {[%clk 0:04:58.8]} 2. Nc3 {[%clk 0:04:59]}
2... d5 {[%clk 0:04:54.8]} 3. Bf4 {[%clk 0:04:58]} 3... c5 {[%clk 0:04:51.2]} 4.
e4 {[%clk 0:04:56.8]} 4... dxe4 {[%clk 0:04:48.3]} 5. Nb5 {[%clk 0:04:54.8]}
5... Na6 {[%clk 0:04:35.4]} 6. dxc5 {[%clk 0:04:52.7]} 6... Qa5+ {[%clk
0:04:34.2]} 7. c3 {[%clk 0:04:51]} 7... Bd7 {[%clk 0:04:31.4]} 8. a4 {[%clk
0:04:46.6]} 8... Rd8 {[%clk 0:04:24]} 9. b4 {[%clk 0:04:43.8]} 9... Bxb5 {[%clk
0:03:53]} 10. Bxb5+ {[%clk 0:04:40.8]} 10... Qxb5 {[%clk 0:03:50.6]} 11. Qxd8+
{[%clk 0:04:39.4]} 11... Kxd8 {[%clk 0:03:49.1]} 12. axb5 {[%clk 0:04:38.8]}
12... Nc7 {[%clk 0:03:47.5]} 13. Bxc7+ {[%clk 0:04:36.5]} 13... Kxc7 {[%clk
0:03:46.3]} 14. Rxa7 {[%clk 0:04:35.5]} 14... Kb8 {[%clk 0:03:35.9]} 15. b6
{[%clk 0:04:33]} 15... Nd5 {[%clk 0:03:33.4]} 16. Kd2 {[%clk 0:04:29.6]} 16...
g6 {[%clk 0:03:30.4]} 17. Ne2 {[%clk 0:04:27.5]} 17... Bh6+ {[%clk 0:03:29.3]}
18. Kc2 {[%clk 0:04:25]} 18... e3 {[%clk 0:03:19.9]} 19. Rha1 {[%clk 0:04:24]}
19... Kc8 {[%clk 0:03:17.4]} 20. Ra8+ {[%clk 0:04:18.6]} 20... Kd7 {[%clk
0:03:15.9]} 21. Rxh8 {[%clk 0:04:17.2]} 21... exf2 {[%clk 0:03:15.2]} 22. Rxh7
{[%clk 0:04:13.6]} 22... Bg5 {[%clk 0:03:11.6]} 23. Rf1 {[%clk 0:04:02.8]} 23...
Ne3+ {[%clk 0:03:10.1]} 24. Kd3 {[%clk 0:03:52.4]} 24... Nxf1 {[%clk 0:03:08.1]}
25. Rxf7 {[%clk 0:03:51]} 25... Bf6 {[%clk 0:03:06]} 26. Rf8 {[%clk 0:03:26.2]}
26... Nxh2 {[%clk 0:03:02.4]} 27. Ng3 {[%clk 0:03:24.7]} 27... f1=Q+ {[%clk
0:02:59.9]} 28. Nxf1 {[%clk 0:03:23.9]} 28... Nxf1 {[%clk 0:02:59.8]} 29. Rb8
{[%clk 0:03:20.4]} 29... Kc6 {[%clk 0:02:58.6]} 30. Rc8+ {[%clk 0:03:18.4]}
30... Kb5 {[%clk 0:02:57.9]} 31. Rc7 {[%clk 0:03:17.4]} 31... Ka6 {[%clk
0:02:57.1]} 32. c4 {[%clk 0:03:16.3]} 32... Ng3 {[%clk 0:02:42.9]} 33. Rc8
{[%clk 0:03:13.9]} 1-0

[Event "Live Chess"]
[Site "Chess.com"]
[Date "2023.05.20"]
[Round "-"]
[White "Reggie016"]
[Black "Ninifu"]
[Result "0-1"]
[WhiteElo "1073"]
[BlackElo "1987"]
[TimeControl "300"]
[EndTime "10:55:07 PDT"]
[Termination "Ninifu won by resignation"]

1. e4 {[%clk 0:04:59.2]} 1... d5 {[%clk 0:04:57.8]} 2. exd5 {[%clk 0:04:57.9]}
2... Nf6 {[%clk 0:04:57.1]} 3. d4 {[%clk 0:04:57.3]} 3... Bg4 {[%clk 0:04:55.7]}
4. Bb5+ {[%clk 0:04:56.6]} 4... Nbd7 {[%clk 0:04:53.9]} 5. Be2 {[%clk
0:04:55.7]} 5... Bxe2 {[%clk 0:04:51.9]} 6. Qxe2 {[%clk 0:04:49.2]} 6... Nxd5
{[%clk 0:04:51]} 7. Nf3 {[%clk 0:04:47.6]} 7... N7f6 {[%clk 0:04:49.9]} 8. O-O
{[%clk 0:04:45.5]} 8... e6 {[%clk 0:04:49]} 9. Nc3 {[%clk 0:04:40.6]} 9... Nxc3
{[%clk 0:04:45.6]} 10. bxc3 {[%clk 0:04:39.3]} 10... Be7 {[%clk 0:04:43.7]} 11.
Qb5+ {[%clk 0:04:28.9]} 11... Qd7 {[%clk 0:04:40.1]} 12. Qxb7 {[%clk 0:04:26.6]}
12... O-O {[%clk 0:04:37.9]} 13. Ne5 {[%clk 0:04:12]} 13... Qc8 {[%clk
0:04:25.8]} 14. Qxc8 {[%clk 0:04:04.4]} 14... Rfxc8 {[%clk 0:04:24.1]} 15. Rb1
{[%clk 0:04:01.6]} 15... c5 {[%clk 0:04:23]} 16. Rb7 {[%clk 0:03:54]} 16... Kf8
{[%clk 0:03:42.3]} 17. Ba3 {[%clk 0:03:52.7]} 17... Nd5 {[%clk 0:03:34]} 18.
Nd7+ {[%clk 0:03:46.2]} 18... Ke8 {[%clk 0:03:31.1]} 19. Bxc5 {[%clk 0:03:34]}
19... Bxc5 {[%clk 0:03:19.1]} 20. Nxc5 {[%clk 0:03:32.3]} 20... Nxc3 {[%clk
0:03:17.2]} 21. Re1 {[%clk 0:03:23.1]} 21... Rd8 {[%clk 0:03:00.6]} 22. Nxe6
{[%clk 0:02:57]} 22... fxe6 {[%clk 0:02:55.4]} 23. Rxe6+ {[%clk 0:02:56.1]}
23... Kf8 {[%clk 0:02:45.7]} 24. Ree7 {[%clk 0:02:53.7]} 24... Rxd4 {[%clk
0:02:39.8]} 25. Rf7+ {[%clk 0:02:52.6]} 25... Ke8 {[%clk 0:02:34.4]} 26. Rfe7+
{[%clk 0:02:44.2]} 26... Kd8 {[%clk 0:02:30.5]} 27. h3 {[%clk 0:02:43.5]} 27...
Ne4 {[%clk 0:01:45.3]} 28. Rxg7 {[%clk 0:02:38.9]} 28... Nf6 {[%clk 0:01:42.5]}
29. Rgf7 {[%clk 0:02:27.6]} 29... Rd6 {[%clk 0:01:37.6]} 30. Rf8+ {[%clk
0:02:19.9]} 30... Ne8 {[%clk 0:01:34.9]} 31. Rxh7 {[%clk 0:02:18.1]} 31... Re6
{[%clk 0:01:24.9]} 32. g4 {[%clk 0:02:12.5]} 32... Re7 {[%clk 0:01:20.2]} 33.
Rxe7 {[%clk 0:02:06.2]} 33... Kxe7 {[%clk 0:01:19.3]} 34. Rh8 {[%clk 0:02:02.8]}
34... Rc8 {[%clk 0:01:18.3]} 35. g5 {[%clk 0:01:58.3]} 35... Rxc2 {[%clk
0:01:17.1]} 36. g6 {[%clk 0:01:57.9]} 36... Ng7 {[%clk 0:01:09.4]} 37. h4 {[%clk
0:01:52.3]} 37... Kf6 {[%clk 0:01:06.5]} 38. Ra8 {[%clk 0:01:37.1]} 38... Rxa2
{[%clk 0:01:03.8]} 39. Kg2 {[%clk 0:01:32.6]} 39... Kxg6 {[%clk 0:01:02.4]} 40.
Rb8 {[%clk 0:01:29]} 40... a5 {[%clk 0:00:52.8]} 41. Rb3 {[%clk 0:01:25.3]}
41... a4 {[%clk 0:00:49.6]} 42. Rg3+ {[%clk 0:01:22.1]} 42... Kh6 {[%clk
0:00:43.1]} 43. Kf3 {[%clk 0:01:21.2]} 43... Ra3+ {[%clk 0:00:40.4]} 44. Kf4
{[%clk 0:01:15.2]} 44... Rxg3 {[%clk 0:00:39.5]} 45. Kxg3 {[%clk 0:01:15.1]}
45... a3 {[%clk 0:00:38.9]} 0-1